lending/lending_fUSD_20240111
["ID","MTS","AMOUNT","RATE_DAILY","PERIOD"]
[311198716,1704979867032,-835.03,0.00041369,30]
[311198717,1704979867043,-502.96,0.00041369,30]
[311198718,1704979867053,-500.0,0.00041369,30]
[311198719,1704979867064,-513.38,0.00041369,30]
[311198720,1704979867074,-162.73,0.00041369,30]
[311198721,1704979867084,-500.0,0.00041369,30]
[311198722,1704979867096,-580.95,0.00041369,30]
[311198723,1704979867107,-1413.2,0.00041369,30]
[311198724,1704979867117,-500.0,0.00041369,30]
[311198725,1704979867127,-894.67,0.00041369,30]
[311198726,1704979867137,-1588.08,0.00041369,30]
[311198727,1704979867147,-160.6,0.00041369,5]
[311198728,1704979867157,-233.61,0.00041369,30]
[311198729,1704979867166,-534.67,0.00041369,30]
[311198730,1704979867177,-818.97,0.00041369,30]
[311198731,1704979867191,-557.1,0.00041369,30]
[311198732,1704979867200,-4016.32,0.00041369,30]
[311198733,1704979867210,-500.0,0.00041369,30]
[311198734,1704979867220,-500.0,0.00041369,30]
[311198735,1704979867230,-500.0,0.00041369,30]
[311198736,1704979867240,-500.0,0.00041369,30]
[311198737,1704979867250,-500.0,0.00041369,30]
[311198738,1704979867261,-500.0,0.00041369,30]
[311198739,1704979867271,-500.0,0.00041369,30]
[311198740,1704979867281,-630.06,0.00041369,30]
[311198741,1704979867291,-1262.12,0.00041369,30]
[311198742,1704979867301,-1205.92,0.00041369,30]
[311198743,1704979867312,-500.0,0.00041369,30]
[311198744,1704979867322,-500.0,0.00041369,30]
[311198745,1704979867332,-500.0,0.00041369,30]
[311198746,1704979867343,-500.0,0.00041369,30]
[311198747,1704979867354,-500.0,0.00041369,30]
[311198748,1704979867364,-936.41,0.00041369,30]
[311198749,1704979867374,-500.0,0.00041369,30]
[311198750,1704979867385,-500.0,0.00041369,30]
[311198751,1704979867396,-684.95,0.00041369,30]
[311198752,1704979867407,-500.0,0.00041369,5]
[311198753,1704979867417,-5271.68,0.00041369,30]
[311198754,1704979867428,-500.0,0.00041369,30]
[311198755,1704979867446,-1590.5,0.00041369,30]
[311198756,1704979867458,-240.88,0.00041369,30]
[311198757,1704979867470,-747.7,0.00041369,30]
[311198758,1704979867482,-1530.69,0.00041369,30]
[311198759,1704979867493,-500.0,0.00041369,30]
[311198760,1704979867506,-1000.0,0.0004137,120]
[311198761,1704979867517,-419.0,0.0004137,120]
[311198762,1704979867528,-419.0,0.0004138,120]
[311198763,1704979867539,-419.0,0.0004139,120]
[311198764,1704979867554,-150.0,0.00041394,2]
[311198765,1704979867566,-1379.15,0.00041398,2]
[311198766,1704979867577,-200.0,0.000414,14]
[311198767,1704979867588,-20161.64398021,0.000414,30]
[311198768,1704979867600,-1000.0,0.000414,2]
[311198769,1704979867612,-150.0,0.00041412,3]
[311198770,1704979867623,-150.0,0.00041412,3]
[311198771,1704979867635,-400.0,0.00041425,120]
[311198772,1704979867646,-211.0,0.00041457,28]
[311198773,1704979867659,-150.0,0.00041464,3]
[311198774,1704979867670,-150.0,0.00041464,3]
[311198775,1704979867681,-533.91695976,0.00041476,30]
[311198776,1704979867699,-1250.34,0.00041481,7]
[311198777,1704979867710,-1250.34,0.00041481,7]
[311198778,1704979867722,-567.40111,0.00041498,8]
[311198779,1704979867734,-177.28607563,0.000415,4]
[311198780,1704979867746,-150.0,0.00041516,3]
[311198781,1704979867757,-150.0,0.00041516,3]
[311198782,1704979867772,-151.95222082,0.00041519,7]
[311198783,1704979867784,-350.0,0.00041534,120]
[311198784,1704979867796,-151.36,0.00041552,2]
[311198785,1704979867808,-414.22,0.00041566,2]
[311198786,1704979867819,-150.0,0.00041567,3]
[311198787,1704979867832,-150.0,0.00041567,3]
[311198788,1704979867844,-200.0,0.00041572,2]
[311198789,1704979867855,-2282.24,0.000416,7]
[311198790,1704979867867,-500.0,0.000416,2]
[311198791,1704979867879,-150.0,0.00041619,3]
[311198792,1704979867891,-150.0,0.00041619,3]
[311198793,1704979867901,-500.0,0.00041643,30]
[311198794,1704979867912,-500.0,0.00041643,30]
[311198795,1704979867923,-511.88,0.00041643,30]
[311198796,1704979867936,-500.0,0.00041643,30]
[311198797,1704979867952,-500.0,0.00041643,30]
[311198798,1704979867965,-500.0,0.00041643,30]
[311198799,1704979867976,-7021.77,0.00041643,30]
[311198800,1704979867988,-500.0,0.00041643,30]
[311198801,1704979868000,-500.0,0.00041643,30]
[311198802,1704979868011,-794.87,0.00041643,30]
[311198803,1704979868022,-660.97,0.00041643,30]
[311198804,1704979868032,-502.12,0.00041643,30]
[311198805,1704979868043,-500.0,0.00041643,30]
[311198806,1704979868053,-500.0,0.00041643,30]
[311198807,1704979868064,-500.0,0.00041643,30]
[311198808,1704979868075,-500.0,0.00041643,30]
[311198809,1704979868086,-500.0,0.00041643,30]
[311198810,1704979868097,-500.0,0.00041643,30]
[311198811,1704979868107,-1164.67,0.00041643,30]
[311198812,1704979868118,-1105.32,0.00041643,30]
[311198813,1704979868129,-854.35,0.00041643,30]
[311198814,1704979868140,-500.0,0.00041643,30]
[311198815,1704979868150,-356.71,0.00041643,30]
[311198816,1704979868160,-500.0,0.00041643,30]
[311198817,1704979868170,-206.5,0.00041643,30]
[311198818,1704979868180,-500.0,0.00041643,30]
[311198819,1704979868196,-500.0,0.00041643,30]
[311198820,1704979868207,-500.0,0.00041643,30]
[311198821,1704979868218,-500.0,0.00041643,30]
[311198822,1704979868228,-1812.54,0.00041643,10]
[311198823,1704979868239,-500.0,0.00041643,30]
[311198824,1704979868249,-2484.37,0.00041643,30]
[311198825,1704979868260,-1838.54,0.00041643,30]
[311198826,1704979868272,-500.0,0.00041643,30]
[311198827,1704979868282,-835.03,0.00041643,30]
[311198828,1704979868292,-538.11,0.00041643,30]
[311198829,1704979868303,-502.96,0.00041643,30]
[311198830,1704979868317,-500.0,0.00041643,30]
[311198831,1704979868329,-513.38,0.00041643,30]
[311198832,1704979868339,-500.0,0.00041643,30]
[311198833,1704979868351,-580.95,0.00041643,30]
[311198834,1704979868361,-1413.2,0.00041643,30]
[311198835,1704979868372,-500.0,0.00041643,30]
[311198836,1704979868382,-894.67,0.00041643,30]
[311198837,1704979868393,-1588.08,0.00041643,30]
[311198838,1704979868403,-534.67,0.00041643,30]
[311198839,1704979868414,-818.97,0.00041643,30]
[311198840,1704979868424,-557.1,0.00041643,30]
[311198841,1704979868435,-4016.32,0.00041643,30]
[311198842,1704979868449,-500.0,0.00041643,30]
[311198843,1704979868459,-500.0,0.00041643,30]
[311198844,1704979868469,-500.0,0.00041643,30]
[311198845,1704979868479,-500.0,0.00041643,30]
[311198846,1704979868489,-500.0,0.00041643,30]
[311198847,1704979868500,-386.17,0.00041643,30]
[311198848,1704979868510,-500.0,0.00041643,30]
[311198849,1704979868521,-630.06,0.00041643,30]
[311198850,1704979868531,-1262.12,0.00041643,30]
[311198851,1704979868542,-1205.92,0.00041643,30]
[311198852,1704979868553,-500.0,0.00041643,30]
[311198853,1704979868564,-500.0,0.00041643,30]
[311198854,1704979868576,-500.0,0.00041643,30]
[311198855,1704979868587,-500.0,0.00041643,30]
[311198856,1704979868598,-500.0,0.00041643,30]
[311198857,1704979868610,-936.41,0.00041643,30]
[311198858,1704979868621,-500.0,0.00041643,30]
[311198859,1704979868632,-500.0,0.00041643,30]
[311198860,1704979868644,-684.95,0.00041643,30]
[311198861,1704979868656,-500.0,0.00041643,5]
[311198862,1704979868668,-5271.68,0.00041643,30]
[311198863,1704979868680,-500.0,0.00041643,30]
[311198864,1704979868700,-1590.5,0.00041643,30]
[311198865,1704979868712,-747.7,0.00041643,30]
[311198866,1704979868723,-1530.69,0.00041643,30]
[311198867,1704979868734,-264.33,0.00041643,30]
[311198868,1704979868745,-153.84,0.00041665,2]
[311198869,1704979868756,-400.0,0.0004167,3]
[311198870,1704979868767,-402.4613842,0.0004167,3]
[311198871,1704979868780,-150.0,0.00041671,3]
[311198872,1704979868791,-150.0,0.00041671,3]
[311198873,1704979868801,-353.0,0.00041671,30]
[311198874,1704979868812,-1421.06936443,0.00041671,30]
[311198875,1704979868823,-567.40111,0.00041698,8]
[311198876,1704979868834,-153.46,0.000417,4]
[311198877,1704979868844,-153.46,0.000417,4]
[311198878,1704979868854,-153.46,0.000417,4]
[311198879,1704979868864,-153.46,0.000417,4]
[311198880,1704979868874,-153.46,0.000417,4]
[311198881,1704979868884,-153.46,0.000417,4]
[311198882,1704979868894,-153.46,0.000417,4]
[311198883,1704979868904,-153.46,0.000417,4]
[311198884,1704979868913,-153.46,0.000417,4]
[311198885,1704979868923,-153.46,0.000417,4]
[311198886,1704979868933,-153.46,0.000417,4]
[311198887,1704979868948,-153.46,0.000417,4]
[311198888,1704979868958,-153.46,0.000417,4]
[311198889,1704979868968,-153.46,0.000417,4]
[311198890,1704979868979,-544.218,0.00041704,2]
[311198891,1704979868991,-10000.0,0.00041721,30]
[311198892,1704979869003,-150.0,0.00041722,3]
[311198893,1704979869014,-150.0,0.00041722,3]
[311198894,1704979869025,-471.57,0.00041734,2]
[311198895,1704979869035,-1000.0,0.00041739,15]
[311198896,1704979869045,-1000.0,0.00041739,15]
[311198897,1704979869055,-1000.0,0.00041739,15]
[311198898,1704979869065,-1000.0,0.00041739,15]
[311198899,1704979869075,-155.0,0.0004174,2]
[311198900,1704979869087,-1250.34,0.00041754,7]
[311198901,1704979869098,-1250.34,0.00041754,7]
[311198902,1704979869108,-414.22,0.00041768,2]
[311198903,1704979869118,-150.0,0.0004177,120]
[311198904,1704979869128,-322.0,0.0004177,120]
[311198905,1704979869137,-150.0,0.00041774,3]
[311198906,1704979869148,-150.0,0.00041774,3]
[311198907,1704979869158,-150.0,0.0004178,120]
[311198908,1704979869168,-322.0,0.0004178,120]
[311198909,1704979869177,-150.0,0.0004179,120]
[311198910,1704979869188,-322.0,0.0004179,120]
[311198911,1704979869203,-1000.0,0.000418,30]
[311198912,1704979869212,-1000.0,0.000418,30]
[311198913,1704979869222,-755.0,0.000418,30]
[311198914,1704979869233,-504.6548218,0.000418,5]
[311198915,1704979869243,-1037.9634488,0.000418,5]
[311198916,1704979869252,-2010.38,0.0004181,2]
[311198917,1704979869262,-150.0,0.00041826,3]
[311198918,1704979869273,-150.0,0.00041826,3]
[311198919,1704979869283,-674.141782,0.0004186,6]
[311198920,1704979869293,-322.0,0.0004187,120]
[311198921,1704979869302,-199.47,0.0004187,120]
[311198922,1704979869312,-150.0,0.0004187,120]
[311198923,1704979869323,-258.65,0.0004187,120]
[311198924,1704979869333,-303.0,0.0004187,120]
[311198925,1704979869342,-774.0,0.0004187,120]
[311198926,1704979869353,-545.0,0.0004187,120]
[311198927,1704979869363,-362.0,0.0004187,120]
[311198928,1704979869373,-788.0,0.0004187,120]
[311198929,1704979869383,-217.0,0.0004187,120]
[311198930,1704979869393,-593.0,0.0004187,120]
[311198931,1704979869402,-939.46,0.00041877,2]
[311198932,1704979869413,-150.0,0.00041877,3]
[311198933,1704979869423,-150.0,0.00041877,3]
[311198934,1704979869433,-322.0,0.0004188,120]
[311198935,1704979869447,-150.0,0.0004188,120]
[311198936,1704979869458,-150.0,0.0004188,120]
[311198937,1704979869468,-150.0,0.0004188,120]
[311198938,1704979869479,-150.0,0.0004188,120]
[311198939,1704979869490,-303.0,0.0004188,120]
[311198940,1704979869500,-774.0,0.0004188,120]
[311198941,1704979869510,-545.0,0.0004188,120]
[311198942,1704979869519,-362.0,0.0004188,120]
[311198943,1704979869529,-788.0,0.0004188,120]
[311198944,1704979869539,-217.0,0.0004188,120]
[311198945,1704979869549,-593.0,0.0004188,120]
[311198946,1704979869560,-500.0,0.0004188,6]
[311198947,1704979869570,-151.22078083,0.00041882,13]
[311198948,1704979869579,-322.0,0.0004189,120]
[311198949,1704979869589,-150.0,0.0004189,120]
[311198950,1704979869599,-150.0,0.0004189,120]
[311198951,1704979869609,-150.0,0.0004189,120]
[311198952,1704979869619,-150.0,0.0004189,120]
[311198953,1704979869629,-281.89,0.0004189,120]
[311198954,1704979869640,-303.0,0.0004189,120]
[311198955,1704979869650,-774.0,0.0004189,120]
[311198956,1704979869659,-545.0,0.0004189,120]
[311198957,1704979869669,-362.0,0.0004189,120]
[311198958,1704979869679,-788.0,0.0004189,120]
[311198959,1704979869693,-217.0,0.0004189,120]
[311198960,1704979869702,-593.0,0.0004189,120]
[311198961,1704979869750,-2522.0,0.0004189,3]
[311198962,1704979869759,-567.40111,0.00041898,8]
[311198963,1704979869769,-172.90978164,0.000419,60]
[311198964,1704979869778,-333223.60002896,0.000419,2]
[311198965,1704979869787,-3016.2,0.000419,7]
[311198966,1704979869796,-2840.21,0.000419,7]
[311198967,1704979869806,-2282.24,0.000419,7]
[311198968,1704979869815,-151.0,0.000419,14]
[311198969,1704979869825,-288.3584434,0.000419,14]
[311198970,1704979869834,-230.27573,0.000419,14]
[311198971,1704979869843,-230.27573,0.000419,14]
[311198972,1704979869853,-151.0,0.000419,7]
[311198973,1704979869862,-151.0,0.000419,14]
[311198974,1704979869872,-500.0,0.000419,6]
[311198975,1704979869881,-300.0,0.000419,17]
[311198976,1704979869891,-150.0,0.000419,24]
[311198977,1704979869901,-194.801,0.000419,14]
[311198978,1704979869911,-194.801,0.000419,14]
[311198979,1704979869921,-500.0,0.00041917,30]
[311198980,1704979869930,-422.8070777,0.00041917,30]
[311198981,1704979869944,-500.0,0.00041917,30]
[311198982,1704979869953,-500.0,0.00041917,30]
[311198983,1704979869962,-26700.14053358,0.00041917,5]
[311198984,1704979869971,-26700.14053358,0.00041917,5]
[311198985,1704979869981,-26700.14053358,0.00041917,5]
[311198986,1704979869989,-26700.14053358,0.00041917,5]
[311198987,1704979869999,-25405.62458101,0.00041917,5]
[311198988,1704979870046,-1294.51595257,0.00041917,5]
[311198989,1704979870055,-3948.6148428,0.00041917,5]
[311198990,1704979870082,-384.70105193,0.00039178,4]
[311198991,1704979870092,-920.50002363,0.00041917,5]
[311198992,1704979870270,-1864.4632,0.00028935,14]
[311198993,1704979870281,-0.17258288,0.00039177,4]
[311198994,1704979870295,-160.18368705,0.00039177,4]
[311198995,1704979870306,-418.76500977,0.00039177,4]
[311198996,1704979870317,-1098.13243595,0.00039177,4]
[311198997,1704979870327,-500.0,0.00039178,4]
[311198998,1704979870338,-500.0,0.00039178,4]
[311198999,1704979870348,-105.33350223,0.00039178,4]
[311199000,1704979870362,-394.66649777,0.00039178,4]
[311199001,1704979870372,-352.83109961,0.00039178,4]
[311199002,1704979870391,-147.16890039,0.00039178,4]
[311199003,1704979870402,-500.0,0.00039178,4]
[311199004,1704979870413,-500.0,0.00039452,4]
[311199005,1704979870423,-285.11822193,0.00041917,5]
[311199006,1704979870435,-365.29499343,0.00041917,5]
[311199007,1704979870462,-648.91636192,0.00041917,5]
[311199008,1704979870534,-635.3205522,0.00041917,5]
[311199009,1704979870546,-1970.00779123,0.00041917,5]
[311199010,1704979870558,-10798.5278766,0.00041917,5]
[311199011,1704979870569,-7127.83986984,0.00041917,5]
[311199012,1704979870579,-26700.14053358,0.00041917,5]
[311199013,1704979870589,-26700.14053358,0.00041917,5]
[311199014,1704979870599,-26700.14053358,0.00041917,5]
[311199015,1704979870608,-26700.13953358,0.00041917,5]
[311199016,1704979870618,-500.0,0.00041917,30]
[311199017,1704979870628,-7021.77,0.00041917,30]
[311199018,1704979870638,-431.98,0.00041917,30]
[311199019,1704979870648,-794.87,0.00041917,30]
[311199020,1704979870657,-660.97,0.00041917,30]
[311199021,1704979870667,-502.12,0.00041917,30]
[311199022,1704979870677,-500.0,0.00041917,30]
[311199023,1704979870686,-500.0,0.00041917,30]
[311199024,1704979870702,-500.0,0.00041917,30]
[311199025,1704979870711,-287.18,0.00041917,30]
[311199026,1704979870722,-566.74,0.00041917,30]
[311199027,1704979870731,-500.0,0.00041917,30]
[311199028,1704979870741,-1164.67,0.00041917,30]
[311199029,1704979870750,-1105.32,0.00041917,30]
[311199030,1704979870759,-854.35,0.00041917,30]
[311199031,1704979870769,-347.7,0.00041917,30]
[311199032,1704979870778,-505.22,0.00041917,30]
[311199033,1704979870788,-500.0,0.00041917,30]
[311199034,1704979870798,-500.0,0.00041917,30]
[311199035,1704979870807,-500.0,0.00041917,30]
[311199036,1704979870817,-500.0,0.00041917,30]
[311199037,1704979870827,-1812.54,0.00041917,10]
[311199038,1704979870837,-500.0,0.00041917,30]
[311199039,1704979870846,-2484.37,0.00041917,30]
[311199040,1704979870855,-1838.54,0.00041917,30]
[311199041,1704979870864,-500.0,0.00041917,30]
[311199042,1704979870873,-835.03,0.00041917,30]
[311199043,1704979870882,-538.11,0.00041917,30]
[311199044,1704979870892,-502.96,0.00041917,30]
[311199045,1704979870902,-500.0,0.00041917,30]
[311199046,1704979870912,-513.38,0.00041917,30]
[311199047,1704979870922,-500.0,0.00041917,30]
[311199048,1704979870933,-580.95,0.00041917,30]
[311199049,1704979870946,-1413.2,0.00041917,30]
[311199050,1704979870957,-500.0,0.00041917,30]
[311199051,1704979870968,-894.67,0.00041917,30]
[311199052,1704979870979,-1588.08,0.00041917,30]
[311199053,1704979870991,-534.67,0.00041917,30]
[311199054,1704979871001,-818.97,0.00041917,30]
[311199055,1704979871012,-557.1,0.00041917,30]
[311199056,1704979871025,-4016.32,0.00041917,30]
[311199057,1704979871037,-489.05,0.00041917,30]
[311199058,1704979871048,-500.0,0.00041917,30]
[311199059,1704979871060,-500.0,0.00041917,30]
[311199060,1704979871071,-500.0,0.00041917,30]
[311199061,1704979871083,-500.0,0.00041917,30]
[311199062,1704979871094,-500.0,0.00041917,30]
[311199063,1704979871105,-630.06,0.00041917,30]
[311199064,1704979871116,-1262.12,0.00041917,30]
[311199065,1704979871128,-1205.92,0.00041917,30]
[311199066,1704979871139,-500.0,0.00041917,30]
[311199067,1704979871150,-500.0,0.00041917,30]
[311199068,1704979871160,-500.0,0.00041917,30]
[311199069,1704979871172,-500.01,0.00041917,30]
[311199070,1704979871184,-500.0,0.00041917,30]
[311199071,1704979871199,-936.41,0.00041917,30]
[311199072,1704979871212,-500.0,0.00041917,30]
[311199073,1704979871227,-500.0,0.00041917,30]
[311199074,1704979871239,-684.95,0.00041917,30]
[311199075,1704979871250,-417.20344517,0.00041917,5]
[311199076,1704979871262,-5271.68,0.00041917,30]
[311199077,1704979871274,-500.0,0.00041917,30]
[311199078,1704979871284,-1590.5,0.00041917,30]
[311199079,1704979871295,-747.7,0.00041917,30]
[311199080,1704979871306,-1530.69,0.00041917,30]
[311199081,1704979871317,-500.0,0.0004192,6]
[311199082,1704979871329,-150.0,0.00041929,3]
[311199083,1704979871340,-150.0,0.00041929,3]
[311199084,1704979871350,-500.0,0.0004194,6]
[311199085,1704979871361,-150.0,0.00041953,30]
[311199086,1704979871372,-500.0,0.0004196,6]
[311199087,1704979871383,-414.22,0.00041969,2]
[311199088,1704979871393,-322.0,0.0004198,120]
[311199089,1704979871404,-150.0,0.0004198,120]
[311199090,1704979871416,-419.0,0.0004198,120]
[311199091,1704979871427,-500.0,0.0004198,6]
[311199092,1704979871438,-150.0,0.00041981,3]
[311199093,1704979871454,-150.0,0.00041981,3]
[311199094,1704979871466,-500.0,0.00041987,41]
[311199095,1704979871477,-200.0,0.00041987,21]
[311199096,1704979871488,-500.0,0.00041987,11]
[311199097,1704979871499,-500.0,0.00041987,3]
[311199098,1704979871509,-603.6,0.0004199,60]
[311199099,1704979871520,-322.0,0.0004199,120]
[311199100,1704979871531,-150.0,0.0004199,120]
[311199101,1704979871542,-419.0,0.0004199,120]
[311199102,1704979871552,-31975.70555067,0.00042,2]
[311199103,1704979871565,-264.7284,0.00042,2]
[311199104,1704979871618,-8009.35,0.00042,2]
[311199105,1704979871647,-671.12238823,0.00042,2]
[311199109,1704980381325,355.1956,0.00024795,14]
[311199110,1704980791782,-295.08684247,0.00024682,2]
[311199111,1704980791808,-151.17648535,0.00024683,2]
[311199112,1704980791828,-150.0,0.00024683,2]
[311199113,1704980791851,-1000.0,0.00024781,2]
[311199114,1704980791872,-370.66501238,0.00024781,2]
[311199115,1704980791893,-155.0,0.00024781,2]
[311199116,1704980791915,-6429.59170343,0.00024783,2]
[311199117,1704980791936,-5621.59693344,0.00024783,2]
[311199118,1704980791956,-300.0,0.00024784,2]
[311199119,1704980791976,-150.0,0.00024784,2]
[311199120,1704980791996,-410.47079097,0.00024793,2]
[311199121,1704980792016,-1024.13887096,0.00024794,2]
[311199122,1704980792036,-7415.9702804,0.00024795,2]
[311199123,1704980792058,-41526.3030806,0.00024795,2]
[311199124,1704980835094,-1000.0,0.00024794,2]
[311199125,1704980835115,-846.35156379,0.00024795,2]
[311199126,1704980850092,-1507.96729891,0.00024795,2]
[311199145,1704980953093,-295.08684247,0.00024794,2]
[311199146,1704980953112,-4.91801702,0.00024795,2]
[311199147,1704980957090,-6614.05620832,0.00024795,2]
[311199148,1704980957110,-7415.9702804,0.00024795,2]
[311199149,1704980957130,-244.2798206,0.00024795,2]
[311199150,1704980957150,-223.81083167,0.00024883,2]
[311199151,1704980957168,-223.81083167,0.00024883,2]
[311199152,1704980957186,-223.81083167,0.00024884,2]
[311199153,1704980957205,-350.0,0.00025,3]
[311199154,1704980957225,-1246.87746617,0.00025,2]
[311199155,1704980957246,-362.83,0.00025405,2]
[311199156,1704980957265,-300.0,0.00025703,2]
[311199157,1704980957285,-150.0,0.00025703,2]
[311199158,1704980957305,-150.0,0.00025703,2]
[311199159,1704980957325,-151.17648534,0.00025704,2]
[311199160,1704980957343,-499.99,0.00025949,2]
[311199161,1704980957363,-1000.0,0.00026188,2]
[311199162,1704980957383,-151.17648534,0.00026725,2]
[311199163,1704980957403,-481.6,0.00026855,2]
[311199164,1704980957423,-293.89,0.00026948,2]
[311199165,1704980957443,-1790.22,0.00026969,2]
[311199166,1704980957462,-371.73921279,0.00026998,2]
[311199167,1704980957481,-158.76032228,0.00026998,2]
[311199168,1704980957500,-721.29694978,0.00026998,2]
[311199169,1704980957518,-194.53890477,0.00026998,2]
[311199170,1704980957546,-48.10376727,0.00026998,2]
[311199171,1704980957565,-156.04013159,0.00026998,2]
[311199172,1704980957584,-254.24373235,0.00026998,2]
[311199173,1704980957606,-950.84386879,0.00026998,2]
[311199174,1704980968109,-949.95398496,0.00026998,2]
[311199175,1704980970097,-401.23573356,0.00026998,2]
[311199176,1704980970116,-155.36444738,0.00026998,2]
[311199177,1704980970135,-3164.94449681,0.00026998,2]
[311199178,1704980970155,-2051.57756355,0.00026998,2]
[311199179,1704980970174,-234.570411,0.00026998,2]
[311199180,1704980970194,-192.24896308,0.00026998,2]
[311199181,1704980970214,-251.18155046,0.00026998,2]
[311199182,1704980970233,-340.90679444,0.00026998,2]
[311199183,1704980970252,-576.9581811,0.00026999,2]
[311199184,1704980970272,-288.40944335,0.00027,3]
[311199258,1704981033750,-4695.3,0.00026998,2]
[311199259,1704981033814,-1413.80656809,0.00026998,2]
[311199260,1704981033826,-360.98499987,0.00026998,2]
[311199261,1704981033838,-1469.96904,0.00026998,2]
[311199262,1704981033851,-265.44622218,0.00026998,2]
[311199263,1704981033867,-42294.0893385,0.00026998,2]
[311199264,1704981033877,-155.0,0.00026998,2]
[311199265,1704981033886,-7415.9702804,0.00026998,2]
[311199266,1704981033895,-612.4033725,0.00026999,2]
[311199267,1704981033905,-111.59055665,0.00027,3]
[311199268,1704981033914,-1024.54,0.00027,2]
[311199269,1704981033924,-202.42,0.00027191,2]
[311199270,1704981033934,-479.04,0.00027241,2]
[311199271,1704981033943,-155.59,0.00027354,2]
[311199272,1704981033953,-155.59,0.00027484,2]
[311199273,1704981033963,-1218.82,0.00027484,2]
[311199274,1704981033972,-155.59,0.00027613,2]
[311199275,1704981033982,-2178.73,0.00027631,2]
[311199276,1704981033992,-20548.22,0.00027631,2]
[311199277,1704981034001,-155.59,0.00027743,2]
[311199278,1704981034011,-151.17648534,0.00027746,2]
[311199279,1704981034021,-420.0,0.00027825,2]
[311199280,1704981034030,-1577.35883959,0.0002787,2]
[311199281,1704981034040,-155.59,0.00027873,2]
[311199282,1704981034050,-293.89,0.00027926,2]
[311199283,1704981034060,-155.59,0.00028002,2]
[311199284,1704981034070,-155.59,0.00028132,2]
[311199285,1704981034079,-155.59,0.00028261,2]
[311199286,1704981034089,-210.0,0.00028273,2]
[311199287,1704981034099,-155.59,0.00028391,2]
[311199288,1704981034110,-155.59,0.0002852,2]
[311199289,1704981034120,-155.59,0.0002865,2]
[311199290,1704981034129,-151.17648534,0.00028767,2]
[311199291,1704981034139,-155.59,0.0002878,2]
[311199292,1704981034149,-520.96,0.00028895,2]
[311199293,1704981034158,-293.89,0.00028905,2]
[311199294,1704981034168,-163.60136252,0.00028931,2]
[311199295,1704981034178,-450.0,0.00029,3]
[311199296,1704981034187,-417.95209149,0.00029016,2]
[311199297,1704981034196,-182.90823691,0.00029031,2]
[311199298,1704981034206,-286.78429064,0.00029031,2]
[311199299,1704981034216,-236.76585008,0.00029031,2]
[311199300,1704981034226,-223.48910038,0.00029031,2]
[311199301,1704981034235,-3761.06297707,0.00029031,4]
[311199302,1704981034245,-220.52698479,0.00029031,2]
[311199303,1704981034254,-1653.04661781,0.00029031,2]
[311199305,1704981034264,-799.55014541,0.00029031,2]
[311199308,1704981034274,-1889.54351286,0.00029031,2]
[311199311,1704981034283,-202.33428816,0.00029031,2]
[311199312,1704981034293,-763.42599532,0.00029031,2]
[311199313,1704981034302,-1043.80845818,0.00029031,2]
[311199314,1704981034312,-244.02773352,0.00029031,2]